fUSD/lending_fUSD_20250309
["ID","MTS","AMOUNT","RATE_DAILY","PERIOD"]
[355763268,1741544480924,-1180.39,8.219e-05,2]
[355763269,1741544480945,-974.47,8.219e-05,2]
[355763270,1741544480968,-1911.87,8.219e-05,2]
[355763271,1741544480990,-500.0,8.219e-05,2]
[355763272,1741544481012,-500.0,8.219e-05,2]
[355763273,1741544481040,-2909.86,8.219e-05,2]
[355763274,1741544481063,-500.0,8.219e-05,2]
[355763275,1741544481086,-500.0,8.219e-05,2]
[355763276,1741544481110,-6341.63,8.219e-05,2]
[355763277,1741544481133,-500.0,8.219e-05,2]
[355763278,1741544481158,-1090.36,8.219e-05,2]
[355763279,1741544481182,-215.19245348,8.219e-05,2]
[355763280,1741544481205,-500.0,8.219e-05,2]
[355763281,1741544481227,-958.77,8.219e-05,2]
[355763282,1741544481250,-1075.84,8.219e-05,2]
[355763283,1741544481279,-500.0,8.219e-05,2]
[355763284,1741544481303,-500.0,8.219e-05,2]
[355763285,1741544481325,-500.0,8.219e-05,2]
[355763286,1741544481348,-500.0,8.219e-05,2]
[355763287,1741544481369,-500.0,8.219e-05,2]
[355763288,1741544481392,-1775.89,8.219e-05,2]
[355763289,1741544481414,-772.71,8.219e-05,2]
[355763290,1741544481436,-1089.17,8.219e-05,2]
[355763291,1741544481457,-500.0,8.219e-05,2]
[355763292,1741544481479,-500.0,8.219e-05,2]
[355763293,1741544481502,-500.0,8.219e-05,2]
[355763294,1741544481529,-500.0,8.219e-05,2]
[355763295,1741544481552,-500.0,8.219e-05,2]
[355763296,1741544481573,-619.52,8.219e-05,2]
[355763297,1741544481594,-500.0,8.219e-05,2]
[355763298,1741544481615,-500.0,8.219e-05,2]
[355763299,1741544481639,-1380.47,8.219e-05,2]
[355763300,1741544481662,-728.3,8.219e-05,2]
[355763301,1741544481684,-504.59,8.219e-05,2]
[355763302,1741544481706,-542.8,8.219e-05,2]
[355763303,1741544481729,-1724.81,8.219e-05,2]
[355763304,1741544481752,-500.0,8.219e-05,2]
[355763305,1741544481781,-500.0,8.219e-05,2]
[355763306,1741544481804,-1500.0,8.219e-05,2]
[355763307,1741544481826,-897.99,8.219e-05,2]
[355763308,1741544481847,-1000.0,8.219e-05,2]
[355763309,1741544481868,-500.0,8.219e-05,2]
[355763310,1741544481890,-500.0,8.219e-05,2]
[355763311,1741544481912,-500.0,8.219e-05,2]
[355763312,1741544481936,-500.0,8.219e-05,2]
[355763313,1741544481959,-1573.29,8.219e-05,2]
[355763314,1741544481983,-1011.35,8.219e-05,2]
[355763315,1741544482006,-1465.13,8.219e-05,2]
[355763316,1741544482033,-500.0,8.219e-05,2]
[355763317,1741544482056,-500.0,8.219e-05,2]
[355763318,1741544482077,-408.82373752,8.219e-05,2]
[355763319,1741544482101,-500.0,8.219e-05,2]
[355763320,1741544482124,-500.0,8.219e-05,2]
[355763321,1741544482149,-500.0,8.219e-05,2]
[355763322,1741544482172,-1305.15,8.219e-05,2]
[355763323,1741544482195,-500.0,8.219e-05,2]
[355763324,1741544482217,-744.75,8.219e-05,2]
[355763325,1741544482239,-2315.51,8.219e-05,2]
[355763326,1741544482266,-1063.94,8.219e-05,2]
[355763327,1741544482294,-1505.83,8.219e-05,2]
[355763328,1741544482317,-500.0,8.219e-05,2]
[355763329,1741544482343,-603.3868661,8.219e-05,2]
[355763330,1741544482366,-500.0,8.219e-05,2]
[355763331,1741544482389,-500.0,8.219e-05,2]
[355763332,1741544482412,-500.0,8.219e-05,2]
[355763333,1741544482437,-500.0,8.219e-05,2]
[355763334,1741544482461,-1077.78,8.219e-05,2]
[355763335,1741544482487,-500.0,8.219e-05,2]
[355763336,1741544482512,-500.0,8.219e-05,2]
[355763337,1741544482554,-1027.77,8.219e-05,2]
[355763338,1741544482578,-500.0,8.219e-05,2]
[355763339,1741544482604,-9277.24,8.219e-05,2]
[355763340,1741544482627,-500.0,8.219e-05,2]
[355763341,1741544482652,-500.0,8.219e-05,2]
[355763342,1741544482677,-877.55,8.219e-05,2]
[355763343,1741544482703,-2022.96,8.219e-05,2]
[355763344,1741544482727,-324.53781371,8.219e-05,2]
[355763345,1741544482750,-500.0,8.219e-05,2]
[355763346,1741544482778,-500.0,8.219e-05,2]
[355763347,1741544482802,-512.13991457,8.219e-05,2]
[355763348,1741544482825,-2849.24,8.219e-05,2]
[355763349,1741544482849,-500.0,8.219e-05,2]
[355763350,1741544482873,-500.0,8.219e-05,2]
[355763351,1741544482897,-500.0,8.219e-05,2]
[355763352,1741544482919,-500.0,8.219e-05,2]
[355763353,1741544482943,-780.76,8.219e-05,2]
[355763354,1741544482966,-282.1110523,8.219e-05,2]
[355763355,1741544482990,-500.0,8.219e-05,2]
[355763356,1741544483012,-500.0,8.219e-05,2]
[355763357,1741544483038,-874.12,8.219e-05,2]
[355763358,1741544483061,-500.0,8.219e-05,2]
[355763359,1741544483084,-500.0,8.219e-05,2]
[355763360,1741544483105,-500.0,8.219e-05,2]
[355763361,1741544483134,-555.1,8.219e-05,2]
[355763362,1741544483157,-500.0,8.219e-05,2]
[355763363,1741544483180,-816.09,8.219e-05,2]
[355763364,1741544483204,-696.39,8.219e-05,2]
[355763365,1741544483228,-500.0,8.219e-05,2]
[355763366,1741544483253,-554.83,8.219e-05,2]
[355763367,1741544483281,-506.55814174,8.219e-05,2]
[355763368,1741544483304,-500.0,8.219e-05,2]
[355763369,1741544483327,-500.0,8.219e-05,2]
[355763370,1741544483353,-500.0,8.219e-05,2]
[355763371,1741544483377,-500.0,8.219e-05,2]
[355763372,1741544483400,-1579.65,8.219e-05,2]
[355763373,1741544483423,-1168.01,8.219e-05,2]
[355763374,1741544483445,-500.0,8.219e-05,2]
[355763375,1741544483466,-683.69,8.219e-05,2]
[355763376,1741544483488,-500.0,8.219e-05,2]
[355763377,1741544483510,-500.0,8.219e-05,2]
[355763378,1741544483537,-699.32,8.219e-05,2]
[355763379,1741544483559,-5022.28,8.219e-05,2]
[355763380,1741544483581,-958.76,8.219e-05,2]
[355763381,1741544483604,-500.0,8.219e-05,2]
[355763382,1741544483626,-500.0,8.219e-05,2]
[355763383,1741544483648,-500.0,8.219e-05,2]
[355763384,1741544483670,-813.81,8.219e-05,2]
[355763385,1741544483696,-500.0,8.219e-05,2]
[355763386,1741544483718,-1371.91,8.219e-05,2]
[355763387,1741544483740,-500.0,8.219e-05,2]
[355763388,1741544483763,-616.65,8.219e-05,2]
[355763389,1741544483788,-14912.65025602,8.219e-05,2]
[355763390,1741544483812,-1638.56,8.219e-05,2]
[355763391,1741544483835,-500.0,8.219e-05,2]
[355763392,1741544483860,-500.0,8.219e-05,2]
[355763393,1741544483884,-874.02,8.219e-05,2]
[355763394,1741544483908,-500.0,8.219e-05,2]
[355763395,1741544483932,-500.0,8.219e-05,2]
[355763396,1741544483955,-500.0,8.219e-05,2]
[355763397,1741544483980,-1202.26,8.219e-05,2]
[355763398,1741544484003,-500.0,8.219e-05,2]
[355763399,1741544484033,-500.0,8.219e-05,2]
[355763400,1741544484057,-500.0,8.219e-05,2]
[355763401,1741544484080,-500.0,8.219e-05,2]
[355763402,1741544484104,-500.0,8.219e-05,2]
[355763403,1741544484128,-500.0,8.219e-05,2]
[355763404,1741544484153,-1060.66,8.219e-05,2]
[355763405,1741544484176,-500.0,8.219e-05,2]
[355763406,1741544484201,-500.0,8.219e-05,2]
[355763407,1741544484223,-382.08,8.219e-05,2]
[355763408,1741544484246,-500.0,8.219e-05,2]
[355763409,1741544484276,-1934.16,8.219e-05,2]
[355763410,1741544484307,-500.0,8.219e-05,2]
[355763411,1741544484329,-505.68008862,8.219e-05,2]
[355763412,1741544484353,-500.0,8.219e-05,2]
[355763413,1741544484604,-879.6,8.219e-05,2]
[355763414,1741544484629,-1939.6,8.219e-05,2]
[355763415,1741544484652,-150.0,8.219e-05,2]
[355763416,1741544484678,-7196942.11861047,8.219e-05,2]
[355763419,1741544526618,200.0,7.857e-05,2]
[355763420,1741544527476,160.16614482,0.00028,120]
[355763427,1741544558725,179.21,7.857e-05,2]
[355763428,1741544559442,179.21,7.881e-05,2]
[355763429,1741544559674,179.21,7.906e-05,2]
[355763430,1741544559896,179.21,7.931e-05,2]
[355763431,1741544560116,179.21,7.956e-05,2]
[355763432,1741544560315,179.21,7.981e-05,2]
[355763433,1741544560534,179.21,8.005e-05,2]
[355763434,1741544560752,179.21,8.03e-05,2]
[355763435,1741544560959,179.21,8.055e-05,2]
[355763436,1741544561166,179.21,8.08e-05,2]
[355763437,1741544561404,179.21,8.105e-05,2]
[355763438,1741544561708,179.21,8.13e-05,2]
[355763439,1741544561927,179.21,8.154e-05,2]
[355763440,1741544562142,179.21,8.179e-05,2]
[355763444,1741544664333,144.52282699,7.616e-05,2]
[355763445,1741544664355,10000.0,7.616e-05,2]
[355763446,1741544664377,10000.0,7.616e-05,2]
[355763447,1741544664397,3755.47717301,7.616e-05,2]
[355763448,1741544704563,157.0,0.00028,120]
[355763449,1741544737087,6244.52282699,8e-05,2]
[355763450,1741544737110,10000.0,8e-05,2]
[355763451,1741544737132,3990.63596647,8e-05,2]
[355763453,1741544837841,200.0,7.8e-05,2]
[355763462,1741544839951,500.0,7.9e-05,2]
[355763463,1741544842135,800.0,8e-05,2]
[355763469,1741544857488,175.14,7.615e-05,2]
[355763476,1741544905266,-179.21,8.204e-05,2]
[355763477,1741544905296,-550.0,8.211e-05,2]
[355763478,1741544905325,-150.0,8.217e-05,2]
[355763479,1741544905356,-300.0,8.217e-05,2]
[355763480,1741544905385,-1077.82461427,8.218e-05,2]
[355763481,1741544905427,-4138.5934904,8.218e-05,2]
[355763482,1741544905469,-6395.62810467,8.218e-05,2]
[355763483,1741544905936,-6395.62810467,8.218e-05,2]
[355763484,1741544908431,1015.08006216,0.00026643,35]
[355763588,1741545032183,-4129.57311324,8.216e-05,2]
[355763589,1741545032245,-97124.26406687,8.216e-05,2]
[355763590,1741545032256,-295004.71148214,8.216e-05,2]
[355763591,1741545032273,-393.43771686,8.216e-05,2]
[355763592,1741545032284,-3530.59549511,8.216e-05,2]
[355763593,1741545032296,-6854.46049024,8.216e-05,2]
[355763594,1741545032368,-460.41945869,8.206e-05,2]
[355763595,1741545032380,-1612.13791205,8.206e-05,2]
[355763596,1741545032431,-700.0,8.206e-05,2]
[355763597,1741545032445,-409.23883001,8.206e-05,2]
[355763598,1741545032493,-324.21729644,8.206e-05,2]
[355763599,1741545032506,-3701.95556515,8.206e-05,2]
[355763600,1741545032562,-322.9200006,8.206e-05,2]
[355763601,1741545032574,-387.4749431,8.206e-05,2]
[355763630,1741545038124,-827.41,8.206e-05,2]
[355763632,1741545038135,-13426.152715,8.206e-05,2]
[355763642,1741545038203,-1631.0,8.206e-05,2]
[355763643,1741545038214,-4875.0,8.206e-05,2]
[355763644,1741545038225,-773.66300001,8.206e-05,2]
[355763646,1741545038236,-4827.72227389,8.206e-05,2]
[355763648,1741545038278,-448.38284738,8.206e-05,2]
[355763649,1741545038341,-14621.48219416,8.206e-05,2]
[355763650,1741545038353,-4960.07697734,8.206e-05,2]
[355763651,1741545038415,-1070.70831661,8.206e-05,2]
[355763667,1741545040275,-10050.21591675,8.206e-05,2]
[355763668,1741545040285,-22272.91164333,8.216e-05,2]
[355763669,1741545040297,-219793.47081139,8.216e-05,2]
[355763670,1741545040307,-300.0,8.217e-05,2]
[355763671,1741545040317,-150.0,8.217e-05,2]
[355763672,1741545040327,-12191.28322081,8.218e-05,2]
[355763675,1741545041036,-2843.52236854,8.218e-05,2]
[355763676,1741545041052,-31223.46538244,8.218e-05,2]
[355763677,1741545041063,-2821.7,8.218e-05,2]
[355763678,1741545041075,-310.198,8.218e-05,2]
[355763679,1741545041111,-905.81429486,8.218e-05,2]
[355763680,1741545041127,-1957.5,8.218e-05,2]
[355763681,1741545041138,-30729.31822871,8.218e-05,2]
[355763682,1741545041148,-500.0,8.219e-05,2]
[355763683,1741545041157,-500.0,8.219e-05,2]
[355763684,1741545041167,-500.0,8.219e-05,2]
[355763685,1741545041176,-184.69909952,8.219e-05,2]
[355763686,1741545041186,-510.90895992,8.219e-05,2]
[355763687,1741545041196,-500.0,8.219e-05,2]
[355763688,1741545041206,-500.0,8.219e-05,2]
[355763689,1741545041216,-512.45243014,8.219e-05,2]
[355763690,1741545041226,-500.0,8.219e-05,2]
[355763691,1741545041235,-500.0,8.219e-05,2]
[355763692,1741545041245,-528.14705194,8.219e-05,2]
[355763693,1741545041254,-500.0,8.219e-05,2]
[355763694,1741545041263,-510.27807399,8.219e-05,2]
[355763695,1741545041276,-500.0,8.219e-05,2]
[355763696,1741545041285,-500.0,8.219e-05,2]
[355763697,1741545041294,-500.0,8.219e-05,2]
[355763698,1741545041304,-500.0,8.219e-05,2]
[355763699,1741545041313,-500.0,8.219e-05,2]
[355763700,1741545041322,-500.0,8.219e-05,2]
[355763701,1741545041331,-500.0,8.219e-05,2]
[355763702,1741545041342,-508.54345055,8.219e-05,2]
[355763703,1741545041351,-520.95931851,8.219e-05,2]
[355763704,1741545041360,-500.0,8.219e-05,2]
[355763705,1741545041370,-500.0,8.219e-05,2]
[355763706,1741545041379,-516.27182104,8.219e-05,2]
[355763707,1741545041390,-500.0,8.219e-05,2]
[355763708,1741545041401,-500.0,8.219e-05,2]
[355763709,1741545041411,-500.0,8.219e-05,2]
[355763710,1741545041421,-500.0,8.219e-05,2]
[355763711,1741545041432,-500.0,8.219e-05,2]
[355763712,1741545041452,-500.0,8.219e-05,2]
[355763713,1741545041463,-500.0,8.219e-05,2]
[355763714,1741545041474,-500.0,8.219e-05,2]
[355763715,1741545041486,-500.0,8.219e-05,2]
[355763716,1741545041497,-1414.86,8.219e-05,2]
[355763717,1741545041507,-500.0,8.219e-05,2]
[355763718,1741545041520,-500.0,8.219e-05,2]
[355763719,1741545041536,-500.0,8.219e-05,2]
[355763720,1741545041548,-500.0,8.219e-05,2]
[355763721,1741545041561,-500.0,8.219e-05,2]
[355763722,1741545041572,-500.0,8.219e-05,2]
[355763723,1741545041581,-500.0,8.219e-05,2]
[355763724,1741545041591,-500.0,8.219e-05,2]
[355763725,1741545041600,-500.0,8.219e-05,2]
[355763726,1741545041610,-500.0,8.219e-05,2]
[355763727,1741545041620,-500.0,8.219e-05,2]
[355763728,1741545041631,-500.0,8.219e-05,2]
[355763729,1741545041641,-500.0,8.219e-05,2]
[355763730,1741545041651,-500.0,8.219e-05,2]
[355763731,1741545041662,-512.99176501,8.219e-05,2]
[355763732,1741545041672,-500.0,8.219e-05,2]
[355763733,1741545041681,-500.0,8.219e-05,2]
[355763734,1741545041691,-500.0,8.219e-05,2]
[355763735,1741545041700,-680.49,8.219e-05,2]
[355763736,1741545041711,-500.0,8.219e-05,2]
[355763737,1741545041720,-500.0,8.219e-05,2]
[355763738,1741545041731,-500.0,8.219e-05,2]
[355763739,1741545041740,-511.91849094,8.219e-05,2]
[355763740,1741545041751,-500.0,8.219e-05,2]
[355763741,1741545041762,-510.93811702,8.219e-05,2]
[355763742,1741545041777,-500.0,8.219e-05,2]
[355763743,1741545041788,-500.0,8.219e-05,2]
[355763744,1741545041797,-500.0,8.219e-05,2]
[355763745,1741545041807,-500.0,8.219e-05,2]
[355763746,1741545041817,-500.0,8.219e-05,2]
[355763747,1741545041827,-500.0,8.219e-05,2]
[355763748,1741545041837,-386.09557231,8.219e-05,2]
[355763749,1741545041847,-510.67373008,8.219e-05,2]
[355763750,1741545041857,-522.83536092,8.219e-05,2]
[355763751,1741545041868,-500.0,8.219e-05,2]
[355763752,1741545041879,-500.0,8.219e-05,2]
[355763753,1741545041889,-500.0,8.219e-05,2]
[355763754,1741545041899,-500.0,8.219e-05,2]
[355763755,1741545041909,-500.0,8.219e-05,2]
[355763756,1741545041921,-500.0,8.219e-05,2]
[355763757,1741545041930,-500.0,8.219e-05,2]
[355763758,1741545041941,-500.0,8.219e-05,2]
[355763759,1741545041950,-500.0,8.219e-05,2]
[355763760,1741545041960,-500.0,8.219e-05,2]
[355763761,1741545041970,-500.0,8.219e-05,2]
[355763762,1741545041979,-500.0,8.219e-05,2]
[355763763,1741545041989,-500.0,8.219e-05,2]
[355763764,1741545041998,-500.0,8.219e-05,2]
[355763765,1741545042007,-500.0,8.219e-05,2]
[355763766,1741545042017,-583.57,8.219e-05,2]
[355763767,1741545042031,-500.0,8.219e-05,2]
[355763768,1741545042040,-500.0,8.219e-05,2]
[355763769,1741545042049,-500.0,8.219e-05,2]
[355763770,1741545042058,-500.0,8.219e-05,2]
[355763771,1741545042067,-500.0,8.219e-05,2]
[355763772,1741545042076,-500.0,8.219e-05,2]
[355763773,1741545042085,-500.0,8.219e-05,2]
[355763774,1741545042094,-500.0,8.219e-05,2]
[355763775,1741545042103,-500.0,8.219e-05,2]
[355763776,1741545042112,-500.0,8.219e-05,2]
[355763777,1741545042121,-500.0,8.219e-05,2]
[355763778,1741545042129,-500.0,8.219e-05,2]
[355763779,1741545042138,-500.0,8.219e-05,2]
[355763780,1741545042147,-500.0,8.219e-05,2]
[355763781,1741545042156,-500.0,8.219e-05,2]
[355763782,1741545042165,-500.0,8.219e-05,2]
[355763783,1741545042174,-500.0,8.219e-05,2]
[355763784,1741545042184,-500.0,8.219e-05,2]
[355763785,1741545042193,-500.0,8.219e-05,2]
[355763786,1741545042203,-500.0,8.219e-05,2]
[355763787,1741545042212,-500.0,8.219e-05,2]
[355763788,1741545042221,-500.0,8.219e-05,2]
[355763789,1741545042230,-500.0,8.219e-05,2]
[355763790,1741545042239,-500.0,8.219e-05,2]
[355763791,1741545042249,-529.06,8.219e-05,2]
[355763792,1741545042258,-500.0,8.219e-05,2]
[355763793,1741545042267,-500.0,8.219e-05,2]
[355763794,1741545042282,-500.0,8.219e-05,2]
[355763795,1741545042291,-500.0,8.219e-05,2]
[355763796,1741545042300,-500.0,8.219e-05,2]
[355763797,1741545042309,-366.0045564,8.219e-05,2]
[355763798,1741545042318,-500.0,8.219e-05,2]
[355763799,1741545042327,-500.0,8.219e-05,2]
[355763800,1741545042336,-500.0,8.219e-05,2]
[355763801,1741545042345,-500.0,8.219e-05,2]
[355763802,1741545042355,-500.0,8.219e-05,2]
[355763803,1741545042364,-500.0,8.219e-05,2]
[355763804,1741545042373,-500.0,8.219e-05,2]
[355763805,1741545042382,-500.0,8.219e-05,2]
[355763806,1741545042391,-500.0,8.219e-05,2]
[355763807,1741545042400,-500.0,8.219e-05,2]
[355763808,1741545042410,-500.0,8.219e-05,2]
[355763809,1741545042419,-500.0,8.219e-05,2]
[355763810,1741545042429,-500.0,8.219e-05,2]
[355763811,1741545042439,-500.0,8.219e-05,2]
[355763812,1741545042449,-500.0,8.219e-05,2]
[355763813,1741545042461,-500.0,8.219e-05,2]
[355763814,1741545042471,-500.0,8.219e-05,2]
[355763815,1741545042480,-500.0,8.219e-05,2]
[355763816,1741545042490,-500.0,8.219e-05,2]
[355763817,1741545042500,-500.0,8.219e-05,2]
[355763818,1741545042510,-500.0,8.219e-05,2]
[355763819,1741545042525,-500.0,8.219e-05,2]
[355763820,1741545042535,-500.0,8.219e-05,2]
[355763821,1741545042545,-500.0,8.219e-05,2]
[355763822,1741545042556,-500.0,8.219e-05,2]
[355763823,1741545042565,-500.0,8.219e-05,2]
[355763824,1741545042575,-500.0,8.219e-05,2]
[355763825,1741545042584,-525.99795256,8.219e-05,2]
[355763826,1741545042593,-500.0,8.219e-05,2]
[355763827,1741545042603,-500.0,8.219e-05,2]
[355763828,1741545042613,-500.0,8.219e-05,2]
[355763829,1741545042623,-532.17158141,8.219e-05,2]
[355763830,1741545042633,-500.0,8.219e-05,2]
[355763831,1741545042643,-500.0,8.219e-05,2]
[355763832,1741545042652,-500.0,8.219e-05,2]
[355763833,1741545042662,-500.0,8.219e-05,2]
[355763834,1741545042671,-500.0,8.219e-05,2]
[355763835,1741545042681,-500.0,8.219e-05,2]
[355763836,1741545042691,-500.0,8.219e-05,2]
[355763837,1741545042700,-500.0,8.219e-05,2]
[355763838,1741545042710,-500.0,8.219e-05,2]
[355763839,1741545042720,-500.0,8.219e-05,2]
[355763840,1741545042730,-500.0,8.219e-05,2]
[355763841,1741545042739,-500.0,8.219e-05,2]
[355763842,1741545042749,-500.0,8.219e-05,2]
[355763843,1741545042758,-500.0,8.219e-05,2]
[355763844,1741545042768,-229.37758101,8.219e-05,2]
[355763845,1741545042781,-500.0,8.219e-05,2]
[355763846,1741545042791,-500.0,8.219e-05,2]
[355763847,1741545042801,-500.0,8.219e-05,2]
[355763848,1741545042810,-500.0,8.219e-05,2]
[355763849,1741545042820,-500.0,8.219e-05,2]
[355763850,1741545042830,-500.0,8.219e-05,2]
[355763851,1741545042839,-500.0,8.219e-05,2]
[355763852,1741545042849,-500.0,8.219e-05,2]
[355763853,1741545042858,-500.0,8.219e-05,2]
[355763854,1741545042868,-500.0,8.219e-05,2]
[355763855,1741545042878,-500.0,8.219e-05,2]
[355763856,1741545042887,-500.0,8.219e-05,2]
[355763857,1741545042896,-500.0,8.219e-05,2]
[355763858,1741545042906,-500.0,8.219e-05,2]
[355763859,1741545042915,-500.0,8.219e-05,2]
[355763860,1741545042924,-500.0,8.219e-05,2]
[355763861,1741545042933,-500.0,8.219e-05,2]
[355763862,1741545042943,-500.0,8.219e-05,2]
[355763863,1741545042952,-500.0,8.219e-05,2]
[355763864,1741545042962,-522.54543641,8.219e-05,2]
[355763865,1741545042971,-500.0,8.219e-05,2]
[355763866,1741545042981,-500.0,8.219e-05,2]
[355763867,1741545042991,-500.0,8.219e-05,2]
[355763868,1741545043001,-500.0,8.219e-05,2]
[355763870,1741545043010,-500.0,8.219e-05,2]
[355763871,1741545043024,-500.0,8.219e-05,2]
[355763874,1741545043035,-502.03793689,8.219e-05,2]
[355763875,1741545043044,-500.0,8.219e-05,2]
[355763878,1741545043055,-500.0,8.219e-05,2]
[355763879,1741545043066,-500.0,8.219e-05,2]
[355763880,1741545043076,-500.0,8.219e-05,2]
[355763881,1741545043086,-501.33760088,8.219e-05,2]
[355763882,1741545043096,-507.85513319,8.219e-05,2]
[355763883,1741545043106,-500.0,8.219e-05,2]
[355763884,1741545043116,-500.0,8.219e-05,2]
[355763885,1741545043126,-500.0,8.219e-05,2]
[355763886,1741545043136,-500.0,8.219e-05,2]
[355763887,1741545043145,-500.0,8.219e-05,2]
[355763888,1741545043155,-500.0,8.219e-05,2]
[355763889,1741545043165,-500.0,8.219e-05,2]
[355763890,1741545043174,-500.0,8.219e-05,2]
[355763891,1741545043184,-500.0,8.219e-05,2]
[355763892,1741545043194,-500.0,8.219e-05,2]
[355763893,1741545043204,-500.0,8.219e-05,2]
[355763894,1741545043213,-500.0,8.219e-05,2]
[355763895,1741545043222,-500.0,8.219e-05,2]
[355763896,1741545043231,-500.0,8.219e-05,2]
[355763897,1741545043241,-500.0,8.219e-05,2]
[355763898,1741545043251,-427.52831962,8.219e-05,2]
[355763899,1741545043260,-502.44998188,8.219e-05,2]
[355763900,1741545043272,-518.87505244,8.219e-05,2]
[355763901,1741545043282,-504.38946859,8.219e-05,2]
[355763902,1741545043292,-500.0,8.219e-05,2]
[355763903,1741545043302,-500.0,8.219e-05,2]
[355763905,1741545043312,-500.0,8.219e-05,2]
[355763907,1741545043322,-500.0,8.219e-05,2]
[355763909,1741545043332,-500.0,8.219e-05,2]
[355763910,1741545043341,-263.85103964,8.219e-05,2]
[355763912,1741545043351,-500.0,8.219e-05,2]
[355763914,1741545043360,-500.0,8.219e-05,2]
[355763916,1741545043370,-500.0,8.219e-05,2]
[355763919,1741545043381,-500.0,8.219e-05,2]
[355763922,1741545043392,-500.0,8.219e-05,2]
[355763924,1741545043403,-500.0,8.219e-05,2]
[355763926,1741545043413,-500.0,8.219e-05,2]
[355763927,1741545043424,-500.0,8.219e-05,2]
[355763928,1741545043433,-633.68,8.219e-05,2]
[355763929,1741545043447,-588.74499386,8.219e-05,2]
[355763930,1741545043462,-500.0,8.219e-05,2]
[355763931,1741545043472,-701.25,8.219e-05,2]
[355763932,1741545043483,-500.0,8.219e-05,2]
[355763933,1741545043497,-500.0,8.219e-05,2]
[355763934,1741545043507,-500.0,8.219e-05,2]
[355763935,1741545043517,-500.0,8.219e-05,2]
[355763936,1741545043535,-500.0,8.219e-05,2]
[355763937,1741545043545,-2272.18,8.219e-05,2]
[355763938,1741545043555,-500.0,8.219e-05,2]
[355763939,1741545043566,-500.0,8.219e-05,2]
[355763940,1741545043575,-1171.86,8.219e-05,2]
[355763941,1741545043585,-500.0,8.219e-05,2]
[355763942,1741545043596,-500.0,8.219e-05,2]
[355763943,1741545043606,-500.0,8.219e-05,2]
[355763944,1741545043615,-500.0,8.219e-05,2]
[355763945,1741545043626,-7427.04,8.219e-05,2]
[355763946,1741545043635,-500.0,8.219e-05,2]
[355763947,1741545043645,-1191.61,8.219e-05,2]
[355763948,1741545043654,-505.45564825,8.219e-05,2]
[355763949,1741545043664,-500.0,8.219e-05,2]
[355763950,1741545043674,-500.0,8.219e-05,2]
[355763951,1741545043683,-505.49930891,8.219e-05,2]
[355763952,1741545043697,-2041.67,8.219e-05,2]
[355763953,1741545043706,-500.0,8.219e-05,2]
[355763954,1741545043716,-500.0,8.219e-05,2]
[355763955,1741545043726,-500.0,8.219e-05,2]
[355763956,1741545043736,-500.0,8.219e-05,2]
[355763957,1741545043745,-828.95,8.219e-05,2]
[355763958,1741545043755,-341.75531204,8.219e-05,2]
[355763959,1741545043764,-500.0,8.219e-05,2]
[355763960,1741545043776,-502.14992367,8.219e-05,2]
[355763961,1741545043785,-500.0,8.219e-05,2]
[355763962,1741545043795,-1289.06,8.219e-05,2]
[355763963,1741545043805,-500.0,8.219e-05,2]
[355763964,1741545043814,-504.36534091,8.219e-05,2]
[355763965,1741545043825,-504.38182277,8.219e-05,2]
[355763967,1741545043834,-918.82,8.219e-05,2]
[355763969,1741545043844,-500.0,8.219e-05,2]
[355763971,1741545043854,-500.0,8.219e-05,2]
[355763973,1741545043864,-500.0,8.219e-05,2]
[355763974,1741545043874,-576.09,8.219e-05,2]
[355763975,1741545043884,-902.67696,8.219e-05,2]
[355763976,1741545043894,-500.0,8.219e-05,2]
[355763977,1741545043904,-506.30365526,8.219e-05,2]
[355763978,1741545043913,-513.98274242,8.219e-05,2]
[355763979,1741545043923,-503.15120586,8.219e-05,2]